Cogmind - Beta 16 @@@ ROGUE MODE // 2026.02.09 @ 10:43:33 Player: Lintence Result: Self-destructed Performance ------------- Evolutions (1) 500 Regions Visited (3) 600 Robots Destroyed (7) 35 Value Destroyed (42) 42 Prototype IDs (2) 40 Alien Tech Used (0) 0 Bonus (0) 0 TOTAL SCORE: 1217 Bonus ------- None Cogmind --------- Core Integrity 288/400 Matter 188/300 Energy 280/280 System Corruption 0% Temperature Cool (0) Movement Flying (117) Ox1 Location -9/Mines Parts ------- > --- POWER (1) -------- Cooled Ion Engine > --- PROPULSION (3) --- Flight Unit Flight Unit > --- UTILITY (3) ------ Sensor Array > --- WEAPON (2) ------- Mining Claw Mining Claw > --- INVENTORY (5) ---- Light Ion Engine Flight Unit Flight Unit Flight Unit Seismic Detector Peak State ------------ > --- POWER ------------ Cooled Ion Engine > --- PROPULSION ------- Flight Unit Flight Unit VTOL Module > --- UTILITY ---------- Weight Redist. System Sensor Array Signal Interpreter > --- WEAPON ----------- Mining Claw Mining Claw > --- INVENTORY -------- Light Ion Engine Flight Unit Flight Unit Structural Scanner Seismic Detector [Rating: 13] Favorites ----------- Power Light Ion Engine Engine Light Ion Engine Propulsion Flight Unit Leg Aluminum Leg Flight Unit Flight Unit Utility Structural Scanner Device Structural Scanner Storage Small Storage Unit Processor Signal Interpreter Weapon Mining Claw Energy Gun EM Pulse Gun Ballistic Gun Light Assault Rifle Launcher Grenade Launcher Slashing Weapon Mining Claw Build | -11 -10 -9 -9 ------- Run | Yrd Mat Mat Min Slots Evolved 2 | . . 2 . Power . | . . . . Propulsion 1 | . . 1 . Utility 1 | . . 1 . Weapon . | . . . . Parts Attached 29 | 9 7 12 1 Power 3 | 1 1 1 . Engine 3 | 1 1 1 . Core . | . . . . Reactor . | . . . . Propulsion 9 | 2 2 4 1 Treads . | . . . . Leg 2 | 2 . . . Wheel . | . . . . Hover . | . . . . Flight 7 | . 2 4 1 Utility 9 | 3 3 3 . Device 5 | 1 1 3 . Storage 2 | 2 . . . Processor 2 | . 2 . . Hackware . | . . . . Protection . | . . . . Artifact . | . . . . Weapon 8 | 3 1 4 . Energy Gun 1 | 1 . . . Energy Cannon . | . . . . Ballistic Gun 4 | 2 1 1 . Ballistic Cannon . | . . . . Launcher 1 | . . 1 . Special Weapon . | . . . . Impact Weapon . | . . . . Slashing Weapon 2 | . . 2 . Piercing Weapon . | . . . . Special Melee Weapon . | . . . . Unidentified Prototypes 2 | . . 2 . Parts Lost 3 | . . . 3 Power . | . . . . Propulsion 1 | . . . 1 Utility 2 | . . . 2 Weapon . | . . . . Highest Loss Streak 3 | . . . 3 To Critical Strikes . | . . . . Average Backups 4 | 1 4 4 4 Power . | . . . 1 Propulsion 1 | . . 1 2 Utility 1 | . 1 1 1 Weapon 1 | . 1 1 . Tool/Special . | . . . . Unused Backups 2 | . . . 2 Power . | . . . . Propulsion 2 | . . . 2 Utility . | . . . . Weapon . | . . . . Tool/Special . | . . . . Average Slot Usage (%) 96 | . 93 99 100 Engine 12 | . 14 11 11 Leg 7 | . 15 . . Flight 22 | . 12 33 33 Device 18 | . 12 19 33 Storage 4 | . 8 . . Processor 5 | . 2 12 . Ballistic Gun 14 | . 27 3 . Slashing Weapon 9 | . . 16 22 Peak Build Rating 13 | 9 9 13 13 Average Rating 9 | 4 7 11 12 On Entrance 7 | . 9 7 13 Avg Prop Armor Cover (%) . | . . . . Naked Turns . | . . . . Heaviest Build 18 | 18 14 14 14 Greatest Support 20 | 20 20 19 19 Greatest Overweight (x) 3 | 3 3 . . Average Overweight (x) . | . . . . Largest Inventory Capacity 8 | 8 8 5 5 Average Capacity 6 | 7 6 5 5 Most Carried 5 | 3 5 5 5 Average Carried 4 | 1 4 4 4 Final Capacity 8 | 8 5 5 5 Final Carried 5 | 3 5 4 5 Class Distribution -------------------- 42% | Scavenger-Sprinter 35% | Mutant 22% | Scavenger-Mutant Dominant Class ---------------- Mutant | -10/Materials Scavenger-Sprinter | -9/Materials Scavenger-Mutant | -9/Mines Resources | -11 -10 -9 -9 ----------- Run | Yrd Mat Mat Min Matter Collected 469 | 207 197 . 65 Remotely . | . . . . Salvage Created 259 | 88 136 . 35 Parts 22 | 8 10 . 4 Haulers Intercepted 2 | . 2 . . Recyclers Shooed 1 | . 1 . . Parts Field Recycled . | . . . . Retrieved Matter . | . . . . Parts Self-Destructed . | . . . . Prevented . | . . . . Parts Restored . | . . . . Kills | -11 -10 -9 -9 ------- Run | Yrd Mat Mat Min Combat Hostiles Destroyed 2 | . . . 2 Melee 2 | . . . 2 Classes Destroyed 5 | 2 2 . 1 Builder 1 | . 1 . . Tunneler 1 | 1 . . . Hauler 2 | . 2 . . Recycler 1 | 1 . . . Swarmer 2 | . . . 2 Best Kill Streak 2 | 1 2 . 2 Combat Bots Only 2 | . . . 2 Max Kills in Single Turn 1 | 1 1 . 1 Gunslinging . | . . . . Exploded . | . . . . Melee 1 | . . . 1 Uniques/NPCs Destroyed . | . . . . Combat | -11 -10 -9 -9 -------- Run | Yrd Mat Mat Min Hostile Shots Fired 56 | . . 5 51 Missed 14 | . . 4 10 Hits 42 | . . 1 41 Projectile 42 | . . 1 41 Damage Taken 329 | . . 13 316 Core 112 | . . . 112 Absorbed by Shields . | . . . . Core Remaining (%) 100 | 100 100 . . Volleys Fired 24 | 5 19 . . Largest 2 | 2 2 . . Hottest 40 | 40 40 . . Shots Fired 45 | 7 38 . . Gun 45 | 7 38 . . Cannon . | . . . . Launcher . | . . . . Special . | . . . . Kinetic 42 | 4 38 . . Thermal . | . . . . Explosive . | . . . . Electromagnetic 3 | 3 . . . Robot Hit Streak 7 | 3 7 . . Robot Miss Streak 4 | 2 4 . . Penetration Max . | . . . . Secondary Targets . | . . . . Shots Hit Robots 33 | 4 24 . 5 Core Hits 13 | 3 8 . 2 Critical Kills . | . . . . Critical Parts Destroyed 1 | . 1 . . Critical Strikes 1 | . 1 . . Destroy 1 | . 1 . . Melee Attacks 20 | . . 7 13 Impact . | . . . . Slashing 20 | . . 7 13 Piercing . | . . . . Sneak Attacks . | . . . . Combat Hostiles . | . . . . Follow-up Attacks 1 | . . . 1 Damage Inflicted 350 | 53 199 . 98 Guns 252 | 53 199 . . Cannons . | . . . . Explosions . | . . . . Melee 98 | . . . 98 Ramming . | . . . . Kinetic 213 | 14 199 . . Thermal . | . . . . Explosive . | . . . . Electromagnetic 39 | 39 . . . Impact . | . . . . Slashing 98 | . . . 98 Piercing . | . . . . Highest Corruption . | . . . . Average Corruption . | . . . . Corruption Purged . | . . . . Corruption Blocked . | . . . . Overload Shots . | . . . . Overflow Damage . | . . . . Projectiles . | . . . . Explosions . | . . . . Melee . | . . . . Knockbacks . | . . . . Impact . | . . . . Kinetic . | . . . . Secondary . | . . . . Self-Inflicted Damage . | . . . . Shots . | . . . . Rammed . | . . . . Targets Rammed . | . . . . Kicked . | . . . . Crushed . | . . . . Highest Temperature 8 | . 8 . . Average Temperature 4 | . 4 . . Received Heat Transfer . | . . . . Siege Activations . | . . . . Martial Activations . | . . . . Shielding Activations . | . . . . Robots Disrupted . | . . . . Combat Hostiles . | . . . . Robots Corrupted . | . . . . Combat Hostiles . | . . . . Parts Fried . | . . . . Impact Corruptions . | . . . . Robots Melted . | . . . . Combat Hostiles . | . . . . Parts Melted . | . . . . Heat Transferred . | . . . . Parts Sabotaged . | . . . . Parts Stolen . | . . . . Parts Stripped . | . . . . Power Chain Reactions . | . . . . Alert | -11 -10 -9 -9 ------- Run | Yrd Mat Mat Min Maximum Alert Level . | . . . . Low Security (%) 100 | 100 100 100 100 Level 1 . | . . . . Level 2 . | . . . . Level 3 . | . . . . Level 4 . | . . . . Level 5 . | . . . . High Security . | . . . . Max Security . | . . . . Peak Influence 43 | 5 5 34 43 Initial 13 | . . . 13 Average 6 | 1 . 8 26 Influence Increases 149 | 10 19 80 40 Destroy 0b10 Robot/C 40 | . . . 40 Destroy 0b10 Robot/NC 25 | 10 15 . . Destroy Leader 4 | . 4 . . Destroy Structure 5 | . . 5 . Partial Spotted 45 | . . 45 . Lose Combat Pursuer 30 | . . 30 . Influence Decreases 149 | 10 19 46 74 Entered New Map 21 | . . . 21 Time Decay 105 | 10 19 46 30 Lost Part 23 | . . . 23 Squads Dispatched 1 | . 1 . . Investigation . | . . . . Extermination . | . . . . Reinforcement 1 | . 1 . . Assault . | . . . . Garrison . | . . . . Intercept . | . . . . Searches Triggered . | . . . . Construction Impeded . | . . . . Haulers Reinforced . | . . . . Active Scanning Responses . | . . . . Cargo Convoy Interrupts . | . . . . Stealth | -11 -10 -9 -9 --------- Run | Yrd Mat Mat Min Distress Signals 2 | . 2 . . Communications Jammed . | . . . . Distress Signals . | . . . . Times Spotted 15 | . 1 7 7 Peak Tracking Total 5 | . . 5 4 Tactical Retreats 2 | . . 2 . Traps | -11 -10 -9 -9 ------- Run | Yrd Mat Mat Min Traps Triggered . | . . . . Indirectly . | . . . . Trap Hack Attempts . | . . . . Triggered . | . . . . Disarmed . | . . . . Reprogrammed . | . . . . Reused . | . . . . Traps Extracted . | . . . . Installed . | . . . . Triggered . | . . . . Machines | -11 -10 -9 -9 ---------- Run | Yrd Mat Mat Min Machines Disabled . | . . . . Max in Single Turn . | . . . . Machines Repaired . | . . . . Machines Dismantled . | . . . . Machines Sabotaged . | . . . . Overloaded Fab Kills . | . . . . Hacking | -11 -10 -9 -9 --------- Run | Yrd Mat Mat Min Machines Accessed 2 | . 1 1 . Terminals 1 | . 1 . . Fabricators . | . . . . Repair Stations . | . . . . Recycling Units . | . . . . Scanalyzers 1 | . . 1 . Garrison Access . | . . . . Total Hacks 10 | . 5 5 . Successful 7 | . 4 3 . Failed 2 | . 1 1 . Catastrophic . | . . . . Database Lockouts 1 | . . 1 . Manual . | . . . . Terminals 5 | . 5 . . Fabricators . | . . . . Repair Stations . | . . . . Recycling Units . | . . . . Scanalyzers 5 | . . 5 . Garrison Access . | . . . . Terminal Hacks 4 | . 4 . . Record 2 | . 2 . . Alert Level 1 | . 1 . . Transport Status 1 | . 1 . . Fabricator Hacks . | . . . . Repair Station Hacks . | . . . . Recycling Unit Hacks . | . . . . Scanalyzer 3 | . . 3 . Insert Component 1 | . . 1 . Analyze 1 | . . 1 . Retrieve Study 1 | . . 1 . Garrison Access Hacks . | . . . . Unauthorized Hacks . | . . . . Terminals . | . . . . Fabricators . | . . . . Repair Stations . | . . . . Recycling Units . | . . . . Scanalyzers . | . . . . Garrison Access . | . . . . Data Cores Recovered . | . . . . Used . | . . . . Hacking Detections 1 | . . 1 . Full Trace Events . | . . . . Feedback Events . | . . . . Feedback Blocked . | . . . . Robot Schematics Acquired . | . . . . Robots Built . | . . . . Authchips . | . . . . Time . | . . . . Total Robot Build Rating . | . . . . Part Schematics Acquired 1 | . . 1 . Parts Built . | . . . . Authchips . | . . . . Time . | . . . . Total Part Build Rating . | . . . . Part Studies Acquired 1 | . . 1 . Parts Repaired . | . . . . Time . | . . . . Parts Recycled . | . . . . Recycled Matter . | . . . . Retrieved Matter . | . . . . Retrieved Components . | . . . . Parts Scanalyzed 1 | . . 1 . Part Schematics Acquired 1 | . . 1 . Parts Damaged . | . . . . Bothacking | -11 -10 -9 -9 ------------ Run | Yrd Mat Mat Min Used RIF Installer . | . . . . Robots Hacked . | . . . . Non-combat . | . . . . Combat . | . . . . Robot Hacks Applied . | . . . . Relay Couplers Released . | . . . . Fabnet Peak Effective % . | . . . . Robots Rewired . | . . . . Allies Hacked . | . . . . Hacks Repelled . | . . . . Allies | -11 -10 -9 -9 -------- Run | Yrd Mat Mat Min Total Allies . | . . . . Largest Group . | . . . . Highest-Rated Group . | . . . . Highest-Rated Ally . | . . . . Total Orders . | . . . . Ally Attacks . | . . . . Total Damage . | . . . . Kills . | . . . . Allies Corrupted . | . . . . Allies Melted . | . . . . Intel | -11 -10 -9 -9 ------- Run | Yrd Mat Mat Min Active Infowar (turns) 441 | 4 211 156 70 Sensors 145 | . . 75 70 Terrain 133 | 4 129 . . Structural 288 | . 79 142 67 Seismic 24 | . . 24 . T.N.C. 96 | . 42 54 . Robot Analysis Total . | . . . . Derelict Logs Recovered 1 | . . . 1 Drone Launches . | . . . . Drone Recoveries . | . . . . Exploration | -11 -10 -9 -9 ------------- Run | Yrd Mat Mat Min Turns Passed 517 | 64 227 156 70 Spaces Moved 663 | 25 219 345 74 Core 8 | 8 . . . Treads . | . . . . Legs 102 | 17 85 . . Wheels . | . . . . Hover . | . . . . Flight 553 | . 134 345 74 Fastest Speed 32 | 50 37 32 32 Average Speed 48 | 130 70 32 33 Slowest Speed 280 | 200 280 34 34 Overloaded Moves . | . . . . Propulsion Burnouts . | . . . . Robots Hopped 1 | . 1 . . Potential Cave-ins . | . . . . Cave-ins Triggered . | . . . . Exploration Rate (%) 28 | 4 53 26 29 Regions Visited 3 Branch Regions 1 Pre-discovered Areas . | . . . . Known Exits Taken 1 | . 1 . . Unknown Exits Taken 2 | 1 . 1 . Scrap Searched 1 | . . . 1 Spaces Dug 5 | . . 5 . Terrain Destroyed 5 | . . 5 . Melee 5 | . . 5 . Projectile . | . . . . AOE . | . . . . Terrain Rammed . | . . . . Walls Destroyed . | . . . . Machines Disabled . | . . . . Actions | -11 -10 -9 -9 --------- Run | Yrd Mat Mat Min Total 777 | 46 259 376 96 Wait 11 | 5 2 . 4 Move 658 | 24 216 344 74 Hop 1 | . 1 . . Pick Up 11 | 2 6 1 2 Fast Attach 17 | 8 4 5 . Attach 4 | . 1 3 . Detach 5 | 1 . 4 . Swap 13 | 1 2 8 2 Drop 16 | . 8 6 2 Fire 24 | 5 19 . . Melee 17 | . . 5 12 Ram . | . . . . Kick . | . . . . Crush . | . . . . Escape Stasis . | . . . . Rewire . | . . . . Trap . | . . . . Miscellaneous . | . . . . Route ------- -11/Scrapyard -10/Materials (discovered 2 exits: *Mat / [*Min]) -9/Materials -9/Mines History --------- Turn | Location | Event 30 | -11/Scrapyard | Discovered new exit (range 15) 65 | -11/Scrapyard | Entered Materials 66 | -10/Materials | Met a group of wandering Federalists 163 | -10/Materials | Discovered new exit (range 16) 284 | -10/Materials | Discovered new exit (range 16) 290 | -10/Materials | Identified exit to Materials 292 | -10/Materials | Entered another Materials area 292 | -9/Materials | Evolved 2 slots: Propulsion x1, Utility x1 311 | -9/Materials | Central database locked down 440 | -9/Materials | Discovered new exit (range 10) 448 | -9/Materials | Entered Mines 452 | -9/Mines | Learned Materials non-interactive machine intel 495 | -9/Mines | Met a Derelict bent on vengeance 518 | -9/Mines | Self-destructed Last Messages --------------- Data stored: Materials non-interactive machine intel. 00462_ Mining Claw follow-up attack on S-10 Pest. 00462_ S-10 Pest destroyed. 00475_ K-01 Serf collects debris. 00479_ Dropped Flight Unit. 00479_ Acquired Flight Unit. 00480_ Acquired 19 matter. 00480_ Dropped VTOL Module+. 00481_ Acquired Flight Unit. 00483_ K-01 Serf collects debris. 00492_ Searching scrap... 00492_ Found Imp. Treads. 00492_ Found 46 Matter. 00493_ Acquired 46 matter. 00503_ S-10 Pest Lgt. Ion Engine ripped off. 00512_ Flight Unit destroyed. 00515_ Structural Scanner destroyed. 00518_ Weight Redist. System destroyed. Map ----- +----------------------------------------------------+ | ??????????????????????????????????## # """ ##?? | | ????????????????????????????????#### # """ ##?? | | ????????????????????????????????#### # """ ##?? | | ???????????????????????????????### ##?? | | ?????????????????????????????##### # ##?? | | ????????????????????????????##### # ##?? | | ???????????????????????????#### #########?? | | ???????????????????????????### #########?? | | ???????????????????????????## ####??????? | | ???????????????????????????## #######??? | | ???????????????????????????## [ #######?? | | ???????????????????????????## %= %[ ###?? | | ???????????????????????????### = ##?? | | ?????????????????? ???????#### [ ##?? | | ????????????? ??? ""????????### ##?? | | ?????????????? """? ####### ###?? | | ?????????????? """ ######## ### ####?? | | ?????????????? ## ##### ########??? | | ????????????????? ##### #######???? | | ???????????????????? #### ###????????? | | ??????????????????????## ## ####????????? | | ??????????????????????## ###?????????? | | ?????????????????######## ## ###??????????? | | ?????????????????######## ### ####?????????? | | ??????????? sss #### ######??????? | | ?????????????????########@ ###### #####??????? | | ?????????????????######## =####### ###?????? | | ???????????????????????##s ##??#### ##?????? | | ???????????????????????## ##???### ##?????? | | ???????????????????????## ##????## ###?????? | | ???????????????????????## #????### ####?????? | | ???????????????????????# ##????#########??????? | | ???????????????????????? ##?????#######???????? | | ???????????????????????? #???????????????????? | | ??????????????????????? ????????????????????? | | ??????????????????????? ????????????????????? | | ??????????????????????? ????????????????????? | | ??????????????????????? ???????????????????? | | ?????????????????????# ???????????????????? | | ?????????????????????## ???????????????????? | | ?????????????????????### ???????????????????? | | ???????????????????????##### ???????????????????? | | ???????????????????????######???????????????????? | | ????????????????????????????????????????????????? | | ????????????????????????????????????????????????? | | ????????????????????????????????????????????????? | | ????????????????????????????????????????????????? | | ????????????????????????????????????????????????? | | | | | +----------------------------------------------------+ Best States ------------- Heat Dissipation 28 Energy Generation 14 Energy Capacity 280 Matter Stores 298 Matter Capacity 300 Sight Range 16 Robot Scan Range 14 Terrain Scan Range 16 Terrain Scan Density 10 Additional Mass Support 6 Evasion (%) 63 Item Schematics ----------------- VTOL Module | -9/Materials | Scanalyzed Robot Schematics ------------------ None Fabricated ------------ Nothing Repaired ---------- Nothing Studied --------- VTOL Module | -9/Materials | Hacked Alien Tech Used ----------------- None Achievements -------------- Item+ Organ Harvest Challenges ------------ None Game ------ Seed IonStormFemtoactuators Manual? 0 Play Time 00:26:20 Cumulative 46.3 hours Start 2026.02.09 @ 10:14:29 End 2026.02.09 @ 10:43:33 Sessions 1 Manual Loads 0 Difficulty Rogue Special Mode None Game No. 89 Rogue 89 Adventurer 0 Explorer 0 Win Type - Total 1 Types 1/0/0/0/0/0/0/0/0/0 Lore% 16 Gallery% 30 Achievement% 15 Wizard Run 0 Options --------- Layout 1 ASCII 0 Keyboard 0 Movement Mouse Keybinds 0 Fullscreen 2 Font 20/X11 Map View 50x35 Zoom Use 1% Tactical HUD 1 Map Filters NONE Filters NONE Steam 1 RUN: 4814183a-8843-4546-a173-22bc251c7b18